Workbook

Sheet Teams
A1: Tm | B1: Rk | C1: Team | D1: PW | E1: PL | F1: MOV | G1: SOS | H1: SRS | I1: ORtg | J1: DRtg | K1: Pace | L1: FTr | M1: 3PAr | N1: eFG% | O1: TOV% | P1: ORB% | Q1: FT/FGA | R1: eFG% | S1: TOV% | T1: DRB% | U1: FT/FGA | V1: Arena | W1: Attendance | X1: Tm | Y1: Eff Dif | Z1: Adj Dif | AA1: Ortg | AB1: Drtg | AC1: Adj Ortg | AD1: Adj Drtg | AF1: Team Games | AG1: TSA | AH1: Est TS% | AI1: Yr Avg TS% | AK1: TS%
A2: TOR | B2: 1 | C2: Toronto Raptors | D2: 29 | E2: 13 | F2: 6.57 | G2: -0.14 | H2: 6.44 | I2: 115.5 | J2: 108.7 | K2: 95.6 | L2: 0.302 | M2: 0.284 | N2: 0.525 | O2: 11 | P2: 25.5 | Q2: 0.245 | R2: 0.514 | S2: 14.4 | T2: 74.5 | U2: 0.219 | V2: Air Canada Centre | W2: 417050 | X2: =A2 -> TOR | Y2: =I2-J2 -> 6.8 | Z2: =IF($C$35<1,Y2,IF($J$78=0,Y2*$S$35+G2*$T$35,VLOOKUP(A2,$A$81:$P$110,16,FALSE))) -> 6.88 | AA2: =I2-AVERAGE($I$2:$I$31) -> 7.323333333 | AB2: =J2-AVERAGE($J$2:$J$31) -> 0.53 | AC2: =IF($C$35<4,AA2,IF($J$78=0,AA2+(Z2-(AA2-AB2))/2,VLOOKUP(A2,$A$81:$S$110,19,FALSE))) -> 7.42 | AD2: =IF($C$35<4,AB2,IF($J$78=0,AB2-(Z2-(AA2-AB2))/2,-VLOOKUP(A2,$A$81:$T$110,20,FALSE))) -> 0.5366666667 | AE2: =Y2*$S$35+G2*$T$35 -> 6.503472377 | AF2: =D2+E2 -> 42 | AG2: =IF(ISNUMBER(P2),1+P2*0.44,AG1) -> 12.22 | AH2: =IF(ISNUMBER(P2),((AK2*2+$Q$180*(P2))/AG2)/2,AH1) -> 0.8500306874 | AJ2: TOR | AK2: =O119 -> 0.572
A3: BOS | B3: 2 | C3: Boston Celtics | D3: 24 | E3: 18 | F3: 2.14 | G3: -0.12 | H3: 2.02 | I3: 111.5 | J3: 109.2 | K3: 95.7 | L3: 0.248 | M3: 0.378 | N3: 0.521 | O3: 11.5 | P3: 21.4 | Q3: 0.201 | R3: 0.505 | S3: 12.9 | T3: 73.5 | U3: 0.219 | V3: TD Garden | W3: 370022 | X3: =A3 -> BOS | Y3: =I3-J3 -> 2.3 | Z3: =IF($C$35<1,Y3,IF($J$78=0,Y3*$S$35+G3*$T$35,VLOOKUP(A3,$A$81:$P$110,16,FALSE))) -> 2.1 | AA3: =I3-AVERAGE($I$2:$I$31) -> 3.323333333 | AB3: =J3-AVERAGE($J$2:$J$31) -> 1.03 | AC3: =IF($C$35<4,AA3,IF($J$78=0,AA3+(Z3-(AA3-AB3))/2,VLOOKUP(A3,$A$81:$S$110,19,FALSE))) -> 3.7 | AD3: =IF($C$35<4,AB3,IF($J$78=0,AB3-(Z3-(AA3-AB3))/2,-VLOOKUP(A3,$A$81:$T$110,20,FALSE))) -> 1.606666667 | AE3: =Y3*$S$35+G3*$T$35 -> 2.141039041 | AF3: =D3+E3 -> 42 | AG3: =IF(ISNUMBER(P3),1+P3*0.44,AG2) -> 10.416 | AH3: =IF(ISNUMBER(P3),((AK3*2+$Q$180*(P3))/AG3)/2,AH2) -> 0.8446828597 | AJ3: BOS | AK3: =O123 -> 0.561
A4: NYK | B4: 3 | C4: New York Knicks | D4: 18 | E4: 26 | F4: -2.8 | G4: -0.07 | H4: -2.87 | I4: 108.2 | J4: 111 | K4: 96.9 | L4: 0.236 | M4: 0.283 | N4: 0.499 | O4: 12.7 | P4: 27.2 | Q4: 0.185 | R4: 0.507 | S4: 11.7 | T4: 74.6 | U4: 0.226 | V4: Madison Square Garden (IV) | W4: 435864 | X4: =A4 -> NYK | Y4: =I4-J4 -> -2.8 | Z4: =IF($C$35<1,Y4,IF($J$78=0,Y4*$S$35+G4*$T$35,VLOOKUP(A4,$A$81:$P$110,16,FALSE))) -> -2.85 | AA4: =I4-AVERAGE($I$2:$I$31) -> 0.02333333333 | AB4: =J4-AVERAGE($J$2:$J$31) -> 2.83 | AC4: =IF($C$35<4,AA4,IF($J$78=0,AA4+(Z4-(AA4-AB4))/2,VLOOKUP(A4,$A$81:$S$110,19,FALSE))) -> 0.07 | AD4: =IF($C$35<4,AB4,IF($J$78=0,AB4-(Z4-(AA4-AB4))/2,-VLOOKUP(A4,$A$81:$T$110,20,FALSE))) -> 2.916666667 | AE4: =Y4*$S$35+G4*$T$35 -> -2.780979522 | AF4: =D4+E4 -> 44 | AG4: =IF(ISNUMBER(P4),1+P4*0.44,AG3) -> 12.968 | AH4: =IF(ISNUMBER(P4),((AK4*2+$Q$180*(P4))/AG4)/2,AH3) -> 0.84868394 | AJ4: NYK | AK4: =O138 -> 0.536
A5: BRK | B5: 4 | C5: Brooklyn Nets | D5: 9 | E5: 32 | F5: -9.63 | G5: 0.8 | H5: -8.83 | I5: 102.8 | J5: 112.2 | K5: 101.9 | L5: 0.278 | M5: 0.384 | N5: 0.504 | O5: 15 | P5: 19.8 | Q5: 0.217 | R5: 0.522 | S5: 11.6 | T5: 75.5 | U5: 0.205 | V5: Barclays Center | W5: 339039 | X5: =A5 -> BRK | Y5: =I5-J5 -> -9.4 | Z5: =IF($C$35<1,Y5,IF($J$78=0,Y5*$S$35+G5*$T$35,VLOOKUP(A5,$A$81:$P$110,16,FALSE))) -> -8.7 | AA5: -5.376666667 | AB5: 4.03 | AC5: =IF($C$35<4,AA5,IF($J$78=0,AA5+(Z5-(AA5-AB5))/2,VLOOKUP(A5,$A$81:$S$110,19,FALSE))) -> -5.83 | AD5: =IF($C$35<4,AB5,IF($J$78=0,AB5-(Z5-(AA5-AB5))/2,-VLOOKUP(A5,$A$81:$T$110,20,FALSE))) -> 2.876666667 | AE5: -8.500349539 | AF5: =D5+E5 -> 41 | AG5: =IF(ISNUMBER(P5),1+P5*0.44,AG4) -> 9.712 | AH5: =IF(ISNUMBER(P5),((AK5*2+$Q$180*(P5))/AG5)/2,AH4) -> 0.8409544893 | AJ5: BRK | AK5: =O145 -> 0.546
A6: PHI | B6: 5 | C6: Philadelphia 76ers | D6: 13 | E6: 27 | F6: -5.6 | G6: -0.39 | H6: -5.99 | I6: 101.4 | J6: 107.1 | K6: 97 | L6: 0.251 | M6: 0.356 | N6: 0.496 | O6: 15.4 | P6: 22.2 | Q6: 0.19 | R6: 0.503 | S6: 12.9 | T6: 75.8 | U6: 0.217 | V6: Wells Fargo Center | W6: 387897 | X6: PHI | Y6: -5.7 | Z6: =IF($C$35<1,Y6,IF($J$78=0,Y6*$S$35+G6*$T$35,VLOOKUP(A6,$A$81:$P$110,16,FALSE))) -> -6.22 | AA6: -6.776666667 | AB6: =J6-AVERAGE($J$2:$J$31) -> -1.07 | AC6: =IF($C$35<4,AA6,IF($J$78=0,AA6+(Z6-(AA6-AB6))/2,VLOOKUP(A6,$A$81:$S$110,19,FALSE))) -> -7.17 | AD6: -0.9433333333 | AE6: -5.861144002 | AF6: 40 | AG6: =IF(ISNUMBER(P6),1+P6*0.44,AG5) -> 10.768 | AH6: =IF(ISNUMBER(P6),((AK6*2+$Q$180*(P6))/AG6)/2,AH5) -> 0.8429745542 | AJ6: PHI | AK6: =O144 -> 0.532
A7: CHO | B7: 6 | C7: Charlotte Hornets | D7: 23 | E7: 19 | F7: 1.45 | G7: -0.52 | H7: 0.94 | I7: 108 | J7: 106.5 | K7: 96.5 | L7: 0.295 | M7: 0.313 | N7: 0.496 | O7: 11 | P7: 21 | Q7: 0.233 | R7: 0.506 | S7: 11.6 | T7: 79.1 | U7: 0.163 | V7: Spectrum Center | W7: 342330 | X7: CHO | Y7: 1.5 | Z7: =IF($C$35<1,Y7,IF($J$78=0,Y7*$S$35+G7*$T$35,VLOOKUP(A7,$A$81:$P$110,16,FALSE))) -> 0.92 | AA7: -0.1766666667 | AB7: -1.67 | AC7: -0.08 | AD7: -1.003333333 | AE7: 1.039611164 | AF7: 42 | AG7: 10.24 | AH7: 0.8423095703 | AJ7: CHO | AK7: =O126 -> 0.542
A8: ATL | B8: 7 | C8: Atlanta Hawks | D8: 21 | E8: 21 | F8: -0.19 | G8: -0.56 | H8: -0.75 | I8: 105.3 | J8: 105.5 | K8: 97.1 | L8: 0.276 | M8: 0.305 | N8: 0.507 | O8: 14 | P8: 24.1 | Q8: 0.199 | R8: 0.508 | S8: 14 | T8: 75.7 | U8: 0.172 | V8: Philips Arena | W8: 308945 | X8: ATL | Y8: -0.2 | Z8: =IF($C$35<1,Y8,IF($J$78=0,Y8*$S$35+G8*$T$35,VLOOKUP(A8,$A$81:$P$110,16,FALSE))) -> -0.94 | AA8: -2.876666667 | AB8: -2.67 | AC8: -3.35 | AD8: -2.413333333 | AE8: -0.6468218581 | AF8: 42 | AG8: =IF(ISNUMBER(P8),1+P8*0.44,AG7) -> 11.604 | AH8: 0.8460437493 | AJ8: ATL | AK8: =O132 -> 0.541
A9: WAS | B9: 8 | C9: Washington Wizards | D9: 21 | E9: 21 | F9: 0.33 | G9: -0.59 | H9: -0.26 | I9: 109 | J9: 108.7 | K9: 96.5 | L9: 0.24 | M9: 0.27 | N9: 0.521 | O9: 13.2 | P9: 24.2 | Q9: 0.189 | R9: 0.523 | S9: 14.2 | T9: 75.7 | U9: 0.212 | V9: Verizon Center | W9: 373211 | X9: WAS | Y9: 0.3 | Z9: =IF($C$35<1,Y9,IF($J$78=0,Y9*$S$35+G9*$T$35,VLOOKUP(A9,$A$81:$P$110,16,FALSE))) -> -0.17 | AA9: 0.8233333333 | AB9: 0.53 | AC9: 0.91 | AD9: =IF($C$35<4,AB9,IF($J$78=0,AB9-(Z9-(AA9-AB9))/2,-VLOOKUP(A9,$A$81:$T$110,20,FALSE))) -> 1.076666667 | AE9: -0.1845384976 | AF9: 42 | AG9: =IF(ISNUMBER(P9),1+P9*0.44,AG8) -> 11.648 | AH9: 0.84744019 | AJ9: WAS | AK9: =O128 -> 0.556
A10: ORL | B10: 9 | C10: Orlando Magic | D10: 14 | E10: 30 | F10: -5.23 | G10: -0.46 | H10: -5.69 | I10: 103.4 | J10: 108.9 | K10: 95.9 | L10: 0.232 | M10: 0.305 | N10: 0.493 | O10: 12.1 | P10: 21.7 | Q10: 0.167 | R10: 0.514 | S10: 12 | T10: 77 | U10: 0.191 | V10: Amway Center | W10: 356909 | X10: ORL | Y10: -5.5 | Z10: =IF($C$35<1,Y10,IF($J$78=0,Y10*$S$35+G10*$T$35,VLOOKUP(A10,$A$81:$P$110,16,FALSE))) -> -5.95 | AA10: -4.776666667 | AB10: 0.73 | AC10: -4.96 | AD10: 0.9866666667 | AE10: -5.723067535 | AF10: 44 | AG10: 10.548 | AH10: 0.8414573063 | AJ10: ORL | AK10: =O143 -> 0.523
A11: MIA | B11: 10 | C11: Miami Heat | D11: 16 | E11: 27 | F11: -4.05 | G11: 0.53 | H11: -3.52 | I11: 103.1 | J11: 107.4 | K11: 94.9 | L11: 0.249 | M11: 0.298 | N11: 0.491 | O11: 12.2 | P11: 23.3 | Q11: 0.169 | R11: 0.498 | S11: 12.1 | T11: 76.6 | U11: 0.206 | V11: AmericanAirlines Arena | W11: 392833 | X11: MIA | Y11: -4.3 | Z11: =IF($C$35<1,Y11,IF($J$78=0,Y11*$S$35+G11*$T$35,VLOOKUP(A11,$A$81:$P$110,16,FALSE))) -> -3.77 | AA11: -5.076666667 | AB11: -0.77 | AC11: -4.58 | AD11: -0.8033333333 | AE11: -3.755988096 | AF11: 43 | AG11: 11.252 | AH11: 0.8430997452 | AJ11: MIA | AK11: =O139 -> 0.518
A12: CLE | B12: 11 | C12: Cleveland Cavaliers | D12: 27 | E12: 14 | F12: 5.1 | G12: -0.17 | H12: 4.93 | I12: 112.6 | J12: 107.4 | K12: 96.7 | L12: 0.295 | M12: 0.39 | N12: 0.528 | O12: 12.6 | P12: 23.7 | Q12: 0.225 | R12: 0.51 | S12: 12.8 | T12: 75.2 | U12: 0.172 | V12: Quicken Loans Arena | W12: 452364 | X12: CLE | Y12: 5.2 | Z12: =IF($C$35<1,Y12,IF($J$78=0,Y12*$S$35+G12*$T$35,VLOOKUP(A12,$A$81:$P$110,16,FALSE))) -> 5.22 | AA12: 4.423333333 | AB12: -0.77 | AC12: 4.46 | AD12: -0.7633333333 | AE12: 4.922416545 | AF12: 41 | AG12: 11.428 | AH12: 0.8478758313 | AJ12: CLE | AK12: =O121 -> 0.567
A13: MIL | B13: 12 | C13: Milwaukee Bucks | D13: 22 | E13: 19 | F13: 1.05 | G13: -0.28 | H13: 0.77 | I13: 109.5 | J13: 108.4 | K13: 95.2 | L13: 0.265 | M13: 0.278 | N13: 0.526 | O13: 12.9 | P13: 22.9 | Q13: 0.202 | R13: 0.508 | S13: 13.1 | T13: 75.4 | U13: 0.208 | V13: BMO Harris Bradley Center | W13: 340989 | X13: MIL | Y13: 1.1 | Z13: =IF($C$35<1,Y13,IF($J$78=0,Y13*$S$35+G13*$T$35,VLOOKUP(A13,$A$81:$P$110,16,FALSE))) -> 0.86 | AA13: 1.323333333 | AB13: 0.23 | AC13: 1.74 | AD13: =IF($C$35<4,AB13,IF($J$78=0,AB13-(Z13-(AA13-AB13))/2,-VLOOKUP(A13,$A$81:$T$110,20,FALSE))) -> 0.8766666667 | AE13: 0.8442114665 | AF13: 41 | AG13: 11.076 | AH13: 0.8464781209 | AJ13: MIL | AK13: =O127 -> 0.561
A14: IND | B14: 13 | C14: Indiana Pacers | D14: 19 | E14: 22 | F14: -0.83 | G14: -1.27 | H14: -2.1 | I14: 107.3 | J14: 108.1 | K14: 97.6 | L14: 0.266 | M14: 0.265 | N14: 0.511 | O14: 12.9 | P14: 20 | Q14: 0.218 | R14: 0.509 | S14: 13.7 | T14: 74.6 | U14: 0.211 | V14: Bankers Life Fieldhouse | W14: 348189 | X14: IND | Y14: -0.8 | Z14: =IF($C$35<1,Y14,IF($J$78=0,Y14*$S$35+G14*$T$35,VLOOKUP(A14,$A$81:$P$110,16,FALSE))) -> -2.05 | AA14: -0.8766666667 | AB14: -0.07 | AC14: -1.32 | AD14: 0.7166666667 | AE14: -1.803981036 | AF14: 41 | AG14: 9.8 | AH14: 0.8421768707 | AJ14: IND | AK14: =O134 -> 0.555
A15: CHI | B15: 14 | C15: Chicago Bulls | D15: 22 | E15: 22 | F15: 0 | G15: -0.63 | H15: -0.63 | I15: 107.1 | J15: 107.1 | K15: 94.4 | L15: 0.28 | M15: 0.233 | N15: 0.471 | O15: 12.1 | P15: 29.5 | Q15: 0.224 | R15: 0.507 | S15: 12.2 | T15: 76.4 | U15: 0.165 | V15: United Center | W15: 475255 | X15: CHI | Y15: 0 | Z15: =IF($C$35<1,Y15,IF($J$78=0,Y15*$S$35+G15*$T$35,VLOOKUP(A15,$A$81:$P$110,16,FALSE))) -> -0.83 | AA15: -1.076666667 | AB15: -1.07 | AC15: -1.53 | AD15: -0.7133333333 | AE15: -0.5087453912 | AF15: 44 | AG15: 13.98 | AH15: 0.8493592036 | AJ15: CHI | AK15: =O130 -> 0.519
A16: DET | B16: 15 | C16: Detroit Pistons | D16: 21 | E16: 23 | F16: -0.7 | G16: 0.28 | H16: -0.43 | I16: 105.9 | J16: 106.6 | K16: 94.2 | L16: 0.218 | M16: 0.264 | N16: 0.496 | O16: 11.2 | P16: 22.5 | Q16: 0.161 | R16: 0.511 | S16: 12.3 | T16: 80.5 | U16: 0.204 | V16: The Palace of Auburn Hills | W16: 305735 | X16: DET | Y16: -0.7 | Z16: =IF($C$35<1,Y16,IF($J$78=0,Y16*$S$35+G16*$T$35,VLOOKUP(A16,$A$81:$P$110,16,FALSE))) -> -0.6 | AA16: -2.276666667 | AB16: -1.57 | AC16: =IF($C$35<4,AA16,IF($J$78=0,AA16+(Z16-(AA16-AB16))/2,VLOOKUP(A16,$A$81:$S$110,19,FALSE))) -> -2.35 | AD16: -1.753333333 | AE16: -0.4550040013 | AF16: 44 | AG16: 10.9 | AH16: 0.8429013761 | AJ16: DET | AK16: =O129 -> 0.527
A17: OKC | B17: 16 | C17: Oklahoma City Thunder | D17: 23 | E17: 21 | F17: 0.75 | G17: 0.25 | H17: 1 | I17: 107.9 | J17: 107.2 | K17: 97.6 | L17: 0.296 | M17: 0.302 | N17: 0.506 | O17: 13.4 | P17: 26.4 | Q17: 0.22 | R17: 0.507 | S17: 12.7 | T17: 77.4 | U17: 0.208 | V17: Chesapeake Energy Arena | W17: 382263 | X17: OKC | Y17: 0.7 | Z17: =IF($C$35<1,Y17,IF($J$78=0,Y17*$S$35+G17*$T$35,VLOOKUP(A17,$A$81:$P$110,16,FALSE))) ->  | AA17: -0.2766666667 | AB17: -0.97 | AC17: =IF($C$35<4,AA17,IF($J$78=0,AA17+(Z17-(AA17-AB17))/2,VLOOKUP(A17,$A$81:$S$110,19,FALSE))) ->  | AD17: =IF($C$35<4,AB17,IF($J$78=0,AB17-(Z17-(AA17-AB17))/2,-VLOOKUP(A17,$A$81:$T$110,20,FALSE))) ->  | AE17: 0.8829961559 | AF17: 44 | AG17: 12.616 | AH17: 0.8486683576 | AJ17: OKC | AK17: =O124 -> 0.545
A18: UTA | B18: 17 | C18: Utah Jazz | D18: 28 | E18: 15 | F18: 4.26 | G18: -0.24 | H18: 4.01 | I18: 108.8 | J18: 104.1 | K18: 91.2 | L18: 0.294 | M18: 0.337 | N18: 0.528 | O18: 13.5 | P18: 22 | Q18: 0.22 | R18: 0.48 | S18: 11.6 | T18: 77.4 | U18: 0.188 | V18: Vivint Smart Home Arena | W18: 430794 | X18: UTA | Y18: 4.7 | Z18: =IF($C$35<1,Y18,IF($J$78=0,Y18*$S$35+G18*$T$35,VLOOKUP(A18,$A$81:$P$110,16,FALSE))) -> 4.39 | AA18: 0.6233333333 | AB18: -4.07 | AC18: 0.41 | AD18: -3.983333333 | AE18: 4.379379948 | AF18: 43 | AG18: 10.68 | AH18: 0.8458021223 | AJ18: UTA | AK18: =O122 -> 0.565
A19: DEN | B19: 18 | C19: Denver Nuggets | D19: 18 | E19: 23 | F19: -2.07 | G19: 0.25 | H19: -1.82 | I19: 110.6 | J19: 112.7 | K19: 98.3 | L19: 0.289 | M19: 0.31 | N19: 0.515 | O19: 13.6 | P19: 28.1 | Q19: 0.218 | R19: 0.527 | S19: 10.7 | T19: 78.8 | U19: 0.213 | V19: Pepsi Center | W19: 273079 | X19: DEN | Y19: -2.1 | Z19: =IF($C$35<1,Y19,IF($J$78=0,Y19*$S$35+G19*$T$35,VLOOKUP(A19,$A$81:$P$110,16,FALSE))) -> -1.97 | AA19: 2.423333333 | AB19: 4.53 | AC19: =IF($C$35<4,AA19,IF($J$78=0,AA19+(Z19-(AA19-AB19))/2,VLOOKUP(A19,$A$81:$S$110,19,FALSE))) -> 2.68 | AD19: 4.646666667 | AE19: -1.841456101 | AF19: 41 | AG19: 13.364 | AH19: 0.8508050234 | AJ19: DEN | AK19: =O133 -> 0.554
A20: POR | B20: 19 | C20: Portland Trail Blazers | D20: 18 | E20: 26 | F20: -3.16 | G20: 0.81 | H20: -2.35 | I20: 109.1 | J20: 112.3 | K20: 97.3 | L20: 0.271 | M20: 0.333 | N20: 0.515 | O20: 12.5 | P20: 21.9 | Q20: 0.212 | R20: 0.514 | S20: 11.7 | T20: 76 | U20: 0.252 | V20: Moda Center | W20: 382532 | X20: POR | Y20: -3.2 | Z20: =IF($C$35<1,Y20,IF($J$78=0,Y20*$S$35+G20*$T$35,VLOOKUP(A20,$A$81:$P$110,16,FALSE))) -> -2.35 | AA20: 0.9233333333 | AB20: 4.13 | AC20: 0.96 | AD20: 3.306666667 | AE20: -2.459558504 | AF20: 44 | AG20: 10.636 | AH20: 0.8447419143 | AJ20: POR | AK20: =O136 -> 0.555
A21: MIN | B21: 20 | C21: Minnesota Timberwolves | D21: 20 | E21: 23 | F21: -1.14 | G21: 0.47 | H21: -0.67 | I21: 108.9 | J21: 110.1 | K21: 94.2 | L21: 0.285 | M21: 0.27 | N21: 0.505 | O21: 13.7 | P21: 27.6 | Q21: 0.225 | R21: 0.526 | S21: 13.2 | T21: 77.2 | U21: 0.22 | V21: Target Center | W21: 307075 | X21: MIN | Y21: -1.2 | Z21: =IF($C$35<1,Y21,IF($J$78=0,Y21*$S$35+G21*$T$35,VLOOKUP(A21,$A$81:$P$110,16,FALSE))) -> -0.79 | AA21: 0.7233333333 | AB21: 1.93 | AC21: 1.11 | AD21: 1.896666667 | AE21: -0.7880821831 | AF21: 43 | AG21: 13.144 | AH21: 0.8500228241 | AJ21: MIN | AK21: =O131 -> 0.549
A22: SAS | B22: 21 | C22: San Antonio Spurs | D22: 32 | E22: 10 | F22: 8.83 | G22: -0.26 | H22: 8.58 | I22: 113.9 | J22: 104.5 | K22: 94 | L22: 0.277 | M22: 0.272 | N22: 0.538 | O22: 12.3 | P22: 23.1 | Q22: 0.226 | R22: 0.495 | S22: 13.4 | T22: 77.8 | U22: 0.202 | V22: AT&amp;T Center | W22: 386985 | X22: SAS | Y22: 9.4 | Z22: =IF($C$35<1,Y22,IF($J$78=0,Y22*$S$35+G22*$T$35,VLOOKUP(A22,$A$81:$P$110,16,FALSE))) -> 9.13 | AA22: 5.723333333 | AB22: -3.67 | AC22: 5.11 | AD22: -4.023333333 | AE22: 8.936417017 | AF22: 42 | AG22: 11.164 | AH22: 0.8484929237 | AJ22: SAS | AK22: =O117 -> 0.581
A23: HOU | B23: 22 | C23: Houston Rockets | D23: 32 | E23: 13 | F23: 7.22 | G23: -0.28 | H23: 6.94 | I23: 115.2 | J23: 107.9 | K23: 98.7 | L23: 0.281 | M23: 0.461 | N23: 0.552 | O23: 13.6 | P23: 25.3 | Q23: 0.213 | R23: 0.513 | S23: 13.3 | T23: 76.2 | U23: 0.199 | V23: Toyota Center | W23: 347553 | X23: HOU | Y23: 7.3 | Z23: =IF($C$35<1,Y23,IF($J$78=0,Y23*$S$35+G23*$T$35,VLOOKUP(A23,$A$81:$P$110,16,FALSE))) -> 6.93 | AA23: 7.023333333 | AB23: -0.27 | AC23: 7.12 | AD23: 0.1866666667 | AE23: 6.876927177 | AF23: 45 | AG23: 12.132 | AH23: 0.8510049181 | AJ23: HOU | AK23: =O118 -> 0.586
A24: MEM | B24: 23 | C24: Memphis Grizzlies | D24: 23 | E24: 21 | F24: 0.41 | G24: 0.55 | H24: 0.96 | I24: 105.2 | J24: 104.8 | K24: 92.9 | L24: 0.279 | M24: 0.307 | N24: 0.48 | O24: 12.1 | P24: 24.1 | Q24: 0.218 | R24: 0.496 | S24: 14.1 | T24: 78.4 | U24: 0.27 | V24: FedEx Forum | W24: 357446 | X24: MEM | Y24: 0.4 | Z24: =IF($C$35<1,Y24,IF($J$78=0,Y24*$S$35+G24*$T$35,VLOOKUP(A24,$A$81:$P$110,16,FALSE))) -> 1.11 | AA24: -2.976666667 | AB24: -3.37 | AC24: =IF($C$35<4,AA24,IF($J$78=0,AA24+(Z24-(AA24-AB24))/2,VLOOKUP(A24,$A$81:$S$110,19,FALSE))) -> -2.73 | AD24: -3.853333333 | AE24: =Y24*$S$35+G24*$T$35 -> 0.8333502671 | AF24: 44 | AG24: 11.604 | AH24: 0.8445787372 | AJ24: MEM | AK24: =O125 -> 0.524
A25: NOP | B25: 24 | C25: New Orleans Pelicans | D25: 18 | E25: 25 | F25: -2.28 | G25: 0.16 | H25: -2.12 | I25: 103.3 | J25: 105.6 | K25: 97.9 | L25: 0.256 | M25: 0.301 | N25: 0.493 | O25: 11.6 | P25: 17.9 | Q25: 0.192 | R25: 0.499 | S25: 12.1 | T25: 77.5 | U25: 0.169 | V25: Smoothie King Center | W25: 349794 | X25: NOP | Y25: -2.3 | Z25: =IF($C$35<1,Y25,IF($J$78=0,Y25*$S$35+G25*$T$35,VLOOKUP(A25,$A$81:$P$110,16,FALSE))) -> -2.28 | AA25: -4.876666667 | AB25: -2.57 | AC25: -4.85 | AD25: -2.573333333 | AE25: -2.108737746 | AF25: 43 | AG25: 8.876 | AH25: 0.8358504206 | AJ25: NOP | AK25: =O135 -> 0.529
A26: DAL | B26: 25 | C26: Dallas Mavericks | D26: 14 | E26: 28 | F26: -4.69 | G26: 0.96 | H26: -3.73 | I26: 104.3 | J26: 109.4 | K26: 91.3 | L26: 0.213 | M26: 0.37 | N26: 0.5 | O26: 12 | P26: 18.7 | Q26: 0.169 | R26: 0.536 | S26: 14.8 | T26: 77.8 | U26: 0.229 | V26: American Airlines Center | W26: 372808 | X26: DAL | Y26: -5.1 | Z26: =IF($C$35<1,Y26,IF($J$78=0,Y26*$S$35+G26*$T$35,VLOOKUP(A26,$A$81:$P$110,16,FALSE))) -> -3.99 | AA26: -3.876666667 | AB26: 1.23 | AC26: -3.84 | AD26: 0.1466666667 | AE26: -4.187164109 | AF26: 42 | AG26: 9.228 | AH26: 0.8379867432 | AJ26: DAL | AK26: =O140 -> 0.535
A27: GSW | B27: 26 | C27: Golden State Warriors | D27: 35 | E27: 7 | F27: 12.81 | G27: -0.51 | H27: 12.3 | I27: 116.1 | J27: 103.5 | K27: 100.7 | L27: 0.271 | M27: 0.351 | N27: 0.568 | O27: 13.5 | P27: 22.3 | Q27: 0.214 | R27: 0.483 | S27: 13.1 | T27: 75.9 | U27: 0.201 | V27: Oracle Arena | W27: 450708 | X27: GSW | Y27: 12.6 | Z27: =IF($C$35<1,Y27,IF($J$78=0,Y27*$S$35+G27*$T$35,VLOOKUP(A27,$A$81:$P$110,16,FALSE))) -> 12.25 | AA27: 7.923333333 | AB27: -4.67 | AC27: 7.36 | AD27: -4.893333333 | AE27: =Y27*$S$35+G27*$T$35 -> 11.84819365 | AF27: 42 | AG27: 10.812 | AH27: 0.8496708904 | AJ27: GSW | AK27: =O116 -> 0.603
A28: LAC | B28: 27 | C28: Los Angeles Clippers | D28: 30 | E28: 14 | F28: 5.95 | G28: -0.78 | H28: 5.17 | I28: 111.7 | J28: 105.6 | K28: 96.3 | L28: 0.305 | M28: 0.324 | N28: 0.53 | O28: 12.2 | P28: 22.3 | Q28: 0.23 | R28: 0.492 | S28: 12.6 | T28: 76.8 | U28: 0.217 | V28: STAPLES Center | W28: 457619 | X28: LAC | Y28: 6.1 | Z28: =IF($C$35<1,Y28,IF($J$78=0,Y28*$S$35+G28*$T$35,VLOOKUP(A28,$A$81:$P$110,16,FALSE))) -> 5.44 | AA28: 3.523333333 | AB28: -2.57 | AC28: 3.48 | AD28: -1.963333333 | AE28: 5.305538598 | AF28: 44 | AG28: 10.812 | AH28: 0.8464337465 | AJ28: LAC | AK28: =O120 -> 0.568
A29: SAC | B29: 28 | C29: Sacramento Kings | D29: 17 | E29: 24 | F29: -2.83 | G29: 0.35 | H29: -2.48 | I29: 107.7 | J29: 110.7 | K29: 94.6 | L29: 0.3 | M29: 0.3 | N29: 0.507 | O29: 13.4 | P29: 22.4 | Q29: 0.235 | R29: 0.53 | S29: 13.9 | T29: 75.8 | U29: 0.234 | V29: Golden 1 Center | W29: 369768 | X29: SAC | Y29: -3 | Z29: =IF($C$35<1,Y29,IF($J$78=0,Y29*$S$35+G29*$T$35,VLOOKUP(A29,$A$81:$P$110,16,FALSE))) -> -2.65 | AA29: -0.4766666667 | AB29: 2.53 | AC29: -0.46 | AD29: 2.186666667 | AE29: -2.636419661 | AF29: 41 | AG29: 10.856 | AH29: 0.8450749202 | AJ29: SAC | AK29: =O137 -> 0.552
A30: LAL | B30: 29 | C30: Los Angeles Lakers | D30: 15 | E30: 31 | F30: -5.85 | G30: 0.63 | H30: -5.22 | I30: 106.8 | J30: 112.8 | K30: 98 | L30: 0.276 | M30: 0.299 | N30: 0.498 | O30: 13.4 | P30: 25.5 | Q30: 0.21 | R30: 0.539 | S30: 12.6 | T30: 75.5 | U30: 0.205 | V30: STAPLES Center | W30: 434543 | X30: LAL | Y30: -6 | Z30: =IF($C$35<1,Y30,IF($J$78=0,Y30*$S$35+G30*$T$35,VLOOKUP(A30,$A$81:$P$110,16,FALSE))) -> -5.44 | AA30: -1.376666667 | AB30: 4.63 | AC30: -0.73 | AD30: 4.706666667 | AE30: -5.329366587 | AF30: 46 | AG30: 12.22 | AH30: 0.8472483633 | AJ30: LAL | AK30: =O142 -> 0.538
A31: PHO | B31: 30 | C31: Phoenix Suns | D31: 13 | E31: 29 | F31: -5.98 | G31: 1.06 | H31: -4.92 | I31: 105.2 | J31: 111.1 | K31: 99.4 | L31: 0.286 | M31: 0.266 | N31: 0.492 | O31: 13.9 | P31: 26.5 | Q31: 0.221 | R31: 0.528 | S31: 13.8 | T31: 77.3 | U31: 0.254 | V31: Talking Stick Resort Arena | W31: 346837 | X31: PHO | Y31: -5.9 | Z31: =IF($C$35<1,Y31,IF($J$78=0,Y31*$S$35+G31*$T$35,VLOOKUP(A31,$A$81:$P$110,16,FALSE))) -> -4.81 | AA31: -2.976666667 | AB31: 2.93 | AC31: -2.49 | AD31: =IF($C$35<4,AB31,IF($J$78=0,AB31-(Z31-(AA31-AB31))/2,-VLOOKUP(A31,$A$81:$T$110,20,FALSE))) -> 2.316666667 | AE31: -4.884825803 | AF31: =D31+E31 -> 42 | AG31: 12.66 | AH31: 0.8480483149 | AJ31: PHO | AK31: =O141 -> 0.536
C32: League Average | D32: =AVERAGE(D2:D31) -> 21.16666667 | E32: =AVERAGE(E2:E31) -> 21.46666667 | I32: =AVERAGE(I2:I31) -> 108.1766667 | J32: 108.17 | K32: 96.28333333 | L32: =AVERAGE(L2:L31) -> 0.2703333333 | M32: =AVERAGE(M2:M31) -> 0.3136333333 | N32: 0.5104 | O32: 12.81666667 | P32: 23.43666667 | Q32: 0.2082666667 | R32: 0.5103333333 | S32: 12.83666667 | T32: 76.53 | U32: 0.2083666667 | W32: =AVERAGE(W2:W31) -> 376547.8667 | AG32: 11.31213333 | AH32: 0.7974767752
G33: =AVERAGE(G2:G31) -> -0.005666666667 | H33: =AVERAGE(H2:H31) -> -0.01066666667
F34: =STDEV(F2:F31) -> 4.993807706 | G34: =STDEV(G2:G31) -> 0.5698437979 | H34: =STDEV(H2:H31) -> 4.723029371 | S34: Factor | T34: SOS
C35: =AVERAGE(D2:E31) -> 21.31666667 | M35: =IF(ISERROR(AVERAGE(M2:M32)),0,AVERAGE(M2:M32)) -> 0.3136333333 | S35: 0.973018663 | T35: 0.807532367
J78: =IF(J81>0,AVERAGE(J81:J110),0) -> 108.9 | K78: =IF(K81>0,AVERAGE(K81:K110),0) -> 108.9033333
A80: Team | B80: Rk | C80: Team | D80: Conf | E80: Div | F80: W | G80: L | H80: W/L% | I80: MOV | J80: Ortg | K80: DRtg | L80: NRtg | M80: MOV/A | N80: ORtg/A | O80: Drtg/A | P80: NRtg/A | Q80: Team | R80: Net Rating | S80: O Rating | T80: D Rating | U80: Net Raw R | V80: O Raw Rat | W80: D Raw Rat | X80: Net SoS | Y80: O SoS | Z80: D SoS
A81: GSW | B81: 1 | C81: Golden State Warriors | D81: W | E81: P | F81: 36 | G81: 6 | H81: 0.857 | I81: 12.81 | J81: 116.67 | K81: 103.92 | L81: 12.75 | M81: 12.3 | N81: 116.26 | O81: 104.01 | P81: 12.25 | Q81: GSW | R81: =P81 -> 12.25 | S81: =N81-$J$78 -> 7.36 | T81: =$K$78-O81 -> 4.893333333 | U81: =L81 -> 12.75 | V81: =J81-$J$78 -> 7.77 | W81: =$K$78-K81 -> 4.983333333 | X81: =R81-U81 -> -0.5 | Y81: =S81-V81 -> -0.41 | Z81: =T81-W81 -> -0.09
A82: SAS | B82: 2 | C82: San Antonio Spurs | D82: W | E82: SW | F82: 33 | G82: 9 | H82: 0.786 | I82: 8.83 | J82: 114.53 | K82: 105.12 | L82: 9.41 | M82: 8.58 | N82: 114.01 | O82: 104.88 | P82: 9.13 | Q82: SAS | R82: =P82 -> 9.13 | S82: =N82-$J$78 -> 5.11 | T82: =$K$78-O82 -> 4.023333333 | U82: =L82 -> 9.41 | V82: =J82-$J$78 -> 5.63 | W82: =$K$78-K82 -> 3.783333333 | X82: =R82-U82 -> -0.28 | Y82: =S82-V82 -> -0.52 | Z82: =T82-W82 -> 0.24
A83: HOU | B83: 3 | C83: Houston Rockets | D83: W | E83: SW | F83: 33 | G83: 12 | H83: 0.733 | I83: 7.22 | J83: 116.1 | K83: 108.91 | L83: 7.19 | M83: 6.94 | N83: 116.02 | O83: 109.09 | P83: 6.93 | Q83: HOU | R83: =P83 -> 6.93 | S83: =N83-$J$78 -> 7.12 | T83: =$K$78-O83 -> -0.1866666667 | U83: =L83 -> 7.19 | V83: =J83-$J$78 -> 7.2 | W83: =$K$78-K83 -> -0.006666666667 | X83: =R83-U83 -> -0.26 | Y83: =S83-V83 -> -0.08 | Z83: =T83-W83 -> -0.18
A84: TOR | B84: 4 | C84: Toronto Raptors | D84: E | E84: A | F84: 28 | G84: 14 | H84: 0.667 | I84: 6.57 | J84: 116.54 | K84: 109.53 | L84: 7.01 | M84: 6.44 | N84: 116.32 | O84: 109.44 | P84: 6.88 | Q84: TOR | R84: =P84 -> 6.88 | S84: 7.42 | T84: -0.5366666667 | U84: 7.01 | V84: 7.64 | W84: -0.6266666667 | X84: -0.13 | Y84: -0.22 | Z84: 0.09
A85: LAC | B85: 5 | C85: Los Angeles Clippers | D85: W | E85: P | F85: 29 | G85: 15 | H85: 0.659 | I85: 5.95 | J85: 112.49 | K85: 106.24 | L85: 6.24 | M85: 5.17 | N85: 112.38 | O85: 106.94 | P85: 5.44 | Q85: LAC | R85: 5.44 | S85: 3.48 | T85: 1.963333333 | U85: 6.24 | V85: 3.59 | W85: 2.663333333 | X85: -0.8 | Y85: -0.11 | Z85: -0.7
A86: CLE | B86: 6 | C86: Cleveland Cavaliers | D86: E | E86: C | F86: 30 | G86: 11 | H86: 0.732 | I86: 5.1 | J86: 113.39 | K86: 108.01 | L86: 5.38 | M86: 4.93 | N86: 113.36 | O86: 108.14 | P86: 5.22 | Q86: CLE | R86: 5.22 | S86: 4.46 | T86: 0.7633333333 | U86: 5.38 | V86: 4.49 | W86: 0.8933333333 | X86: -0.16 | Y86: -0.03 | Z86: -0.13
A87: UTA | B87: 7 | C87: Utah Jazz | D87: W | E87: NW | F87: 27 | G87: 16 | H87: 0.628 | I87: 4.26 | J87: 109.65 | K87: 105 | L87: 4.65 | M87: 4.01 | N87: 109.31 | O87: 104.92 | P87: 4.39 | Q87: UTA | R87: 4.39 | S87: 0.41 | T87: 3.983333333 | U87: 4.65 | V87: 0.75 | W87: 3.903333333 | X87: -0.26 | Y87: -0.34 | Z87: 0.08
A88: BOS | B88: 8 | C88: Boston Celtics | D88: E | E88: A | F88: 26 | G88: 16 | H88: 0.619 | I88: 2.14 | J88: 112.14 | K88: 109.93 | L88: 2.22 | M88: 2.02 | N88: 112.6 | O88: 110.51 | P88: 2.1 | Q88: BOS | R88: 2.1 | S88: 3.7 | T88: -1.606666667 | U88: 2.22 | V88: 3.24 | W88: -1.026666667 | X88: -0.12 | Y88: 0.46 | Z88: -0.58
A89: MEM | B89: 9 | C89: Memphis Grizzlies | D89: W | E89: SW | F89: 25 | G89: 19 | H89: 0.568 | I89: 0.41 | J89: 106.12 | K89: 105.55 | L89: 0.58 | M89: 0.96 | N89: 106.17 | O89: 105.05 | P89: 1.11 | Q89: MEM | R89: 1.11 | S89: =N89-$J$78 -> -2.73 | T89: 3.853333333 | U89: 0.58 | V89: -2.78 | W89: 3.353333333 | X89: 0.53 | Y89: 0.05 | Z89: 0.5
A90: CHO | B90: 10 | C90: Charlotte Hornets | D90: E | E90: SE | F90: 21 | G90: 21 | H90: 0.5 | I90: 1.45 | J90: 108.67 | K90: 107.23 | L90: 1.44 | M90: 0.94 | N90: 108.82 | O90: 107.9 | P90: 0.92 | Q90: CHO | R90: 0.92 | S90: -0.08 | T90: 1.003333333 | U90: 1.44 | V90: -0.23 | W90: 1.673333333 | X90: -0.52 | Y90: 0.15 | Z90: -0.67
A91: OKL | B91: 11 | C91: Oklahoma City Thunder | D91: W | E91: NW | F91: 25 | G91: 19 | H91: 0.568 | I91: 0.75 | J91: 108.64 | K91: 107.97 | L91: 0.67 | M91: 1 | N91: 108.57 | O91: 107.67 | P91: 0.9 | Q91: OKL | R91: 0.9 | S91: -0.33 | T91: 1.233333333 | U91: 0.67 | V91: -0.26 | W91: 0.9333333333 | X91: 0.23 | Y91: -0.07 | Z91: 0.3
A92: MIL | B92: 12 | C92: Milwaukee Bucks | D92: E | E92: C | F92: 20 | G92: 21 | H92: 0.488 | I92: 1.05 | J92: 110.35 | K92: 109.22 | L92: 1.14 | M92: 0.78 | N92: 110.64 | O92: 109.78 | P92: 0.86 | Q92: MIL | R92: 0.86 | S92: 1.74 | T92: -0.8766666667 | U92: 1.14 | V92: 1.45 | W92: -0.3166666667 | X92: -0.28 | Y92: 0.29 | Z92: -0.56
A93: WAS | B93: 13 | C93: Washington Wizards | D93: E | E93: SE | F93: 23 | G93: 19 | H93: 0.548 | I93: 0.33 | J93: 109.93 | K93: 109.5 | L93: 0.43 | M93: -0.26 | N93: 109.81 | O93: 109.98 | P93: -0.17 | Q93: WAS | R93: -0.17 | S93: 0.91 | T93: -1.076666667 | U93: 0.43 | V93: 1.03 | W93: -0.5966666667 | X93: -0.6 | Y93: -0.12 | Z93: -0.48
A94: DET | B94: 14 | C94: Detroit Pistons | D94: E | E94: C | F94: 20 | G94: 24 | H94: 0.455 | I94: -0.7 | J94: 106.52 | K94: 107.39 | L94: -0.87 | M94: -0.43 | N94: 106.55 | O94: 107.15 | P94: -0.6 | Q94: DET | R94: -0.6 | S94: -2.35 | T94: 1.753333333 | U94: -0.87 | V94: -2.38 | W94: 1.513333333 | X94: 0.27 | Y94: 0.03 | Z94: 0.24
A95: MIN | B95: 15 | C95: Minnesota Timberwolves | D95: W | E95: NW | F95: 15 | G95: 28 | H95: 0.349 | I95: -1.14 | J95: 109.59 | K95: 110.86 | L95: -1.27 | M95: -0.66 | N95: 110.01 | O95: 110.8 | P95: -0.79 | Q95: MIN | R95: -0.79 | S95: 1.11 | T95: -1.896666667 | U95: -1.27 | V95: 0.69 | W95: -1.956666667 | X95: 0.48 | Y95: 0.42 | Z95: 0.06
A96: CHI | B96: 16 | C96: Chicago Bulls | D96: E | E96: C | F96: 21 | G96: 22 | H96: 0.488 | I96: 0 | J96: 107.7 | K96: 107.91 | L96: -0.22 | M96: -0.63 | N96: 107.37 | O96: 108.19 | P96: -0.83 | Q96: CHI | R96: -0.83 | S96: -1.53 | T96: 0.7133333333 | U96: -0.22 | V96: -1.2 | W96: 0.9933333333 | X96: -0.61 | Y96: -0.33 | Z96: -0.28
A97: ATL | B97: 17 | C97: Atlanta Hawks | D97: E | E97: SE | F97: 24 | G97: 18 | H97: 0.571 | I97: -0.19 | J97: 105.82 | K97: 106.18 | L97: -0.35 | M97: -0.75 | N97: 105.55 | O97: 106.49 | P97: -0.94 | Q97: ATL | R97: -0.94 | S97: -3.35 | T97: 2.413333333 | U97: -0.35 | V97: -3.08 | W97: 2.723333333 | X97: -0.59 | Y97: -0.27 | Z97: -0.31
A98: DEN | B98: 18 | C98: Denver Nuggets | D98: W | E98: NW | F98: 17 | G98: 24 | H98: 0.415 | I98: -2.07 | J98: 111.24 | K98: 113.48 | L98: -2.24 | M98: -1.82 | N98: 111.58 | O98: 113.55 | P98: -1.97 | Q98: DEN | R98: -1.97 | S98: 2.68 | T98: -4.646666667 | U98: -2.24 | V98: 2.34 | W98: -4.576666667 | X98: 0.27 | Y98: 0.34 | Z98: -0.07
A99: IND | B99: 19 | C99: Indiana Pacers | D99: E | E99: C | F99: 22 | G99: 19 | H99: 0.537 | I99: -0.83 | J99: 107.85 | K99: 108.57 | L99: -0.72 | M99: -2.09 | N99: 107.58 | O99: 109.62 | P99: -2.05 | Q99: IND | R99: -2.05 | S99: -1.32 | T99: -0.7166666667 | U99: -0.72 | V99: -1.05 | W99: 0.3333333333 | X99: -1.33 | Y99: -0.27 | Z99: -1.05
A100: NOP | B100: 20 | C100: New Orleans Pelicans | D100: W | E100: SW | F100: 17 | G100: 26 | H100: 0.395 | I100: -2.28 | J100: 104 | K100: 106.43 | L100: -2.43 | M100: -2.12 | N100: 104.05 | O100: 106.33 | P100: -2.28 | Q100: NOP | R100: -2.28 | S100: -4.85 | T100: 2.573333333 | U100: -2.43 | V100: -4.9 | W100: 2.473333333 | X100: 0.15 | Y100: 0.05 | Z100: 0.1
A101: POR | B101: 21 | C101: Portland Trail Blazers | D101: W | E101: NW | F101: 18 | G101: 26 | H101: 0.409 | I101: -3.16 | J101: 109.74 | K101: 112.92 | L101: -3.18 | M101: -2.34 | N101: 109.86 | O101: 112.21 | P101: -2.35 | Q101: POR | R101: -2.35 | S101: 0.96 | T101: -3.306666667 | U101: -3.18 | V101: 0.84 | W101: -4.016666667 | X101: 0.83 | Y101: 0.12 | Z101: 0.71
A102: SAC | B102: 22 | C102: Sacramento Kings | D102: W | E102: P | F102: 16 | G102: 25 | H102: 0.39 | I102: -2.83 | J102: 108.46 | K102: 111.49 | L102: -3.03 | M102: -2.48 | N102: 108.44 | O102: 111.09 | P102: -2.65 | Q102: SAC | R102: -2.65 | S102: -0.46 | T102: -2.186666667 | U102: -3.03 | V102: -0.44 | W102: -2.586666667 | X102: 0.38 | Y102: -0.02 | Z102: 0.4
A103: NYK | B103: 23 | C103: New York Knicks | D103: E | E103: A | F103: 19 | G103: 25 | H103: 0.432 | I103: -2.8 | J103: 109.03 | K103: 111.79 | L103: -2.76 | M103: -2.86 | N103: 108.97 | O103: 111.82 | P103: -2.85 | Q103: NYK | R103: -2.85 | S103: 0.07 | T103: -2.916666667 | U103: -2.76 | V103: 0.13 | W103: -2.886666667 | X103: -0.09 | Y103: -0.06 | Z103: -0.03
A104: MIA | B104: 24 | C104: Miami Heat | D104: E | E104: SE | F104: 13 | G104: 30 | H104: 0.302 | I104: -4.05 | J104: 104.04 | K104: 108.36 | L104: -4.32 | M104: -3.52 | N104: 104.32 | O104: 108.1 | P104: -3.77 | Q104: MIA | R104: -3.77 | S104: -4.58 | T104: 0.8033333333 | U104: -4.32 | V104: -4.86 | W104: 0.5433333333 | X104: 0.55 | Y104: 0.28 | Z104: 0.26
A105: DAL | B105: 25 | C105: Dallas Mavericks | D105: W | E105: SW | F105: 14 | G105: 28 | H105: 0.333 | I105: -4.69 | J105: 105.05 | K105: 110.01 | L105: -4.96 | M105: -3.73 | N105: 105.06 | O105: 109.05 | P105: -3.99 | Q105: DAL | R105: -3.99 | S105: -3.84 | T105: -0.1466666667 | U105: -4.96 | V105: -3.85 | W105: -1.106666667 | X105: 0.97 | Y105: 0.01 | Z105: 0.96
A106: PHO | B106: 26 | C106: Phoenix Suns | D106: W | E106: P | F106: 13 | G106: 29 | H106: 0.31 | I106: -5.98 | J106: 106.01 | K106: 111.89 | L106: -5.89 | M106: -4.92 | N106: 106.41 | O106: 111.22 | P106: -4.81 | Q106: PHO | R106: -4.81 | S106: -2.49 | T106: -2.316666667 | U106: -5.89 | V106: -2.89 | W106: -2.986666667 | X106: 1.08 | Y106: 0.4 | Z106: 0.67
A107: LAL | B107: 27 | C107: Los Angeles Lakers | D107: W | E107: P | F107: 15 | G107: 31 | H107: 0.326 | I107: -5.85 | J107: 107.5 | K107: 113.58 | L107: -6.09 | M107: -5.21 | N107: 108.17 | O107: 113.61 | P107: -5.44 | Q107: LAL | R107: -5.44 | S107: -0.73 | T107: -4.706666667 | U107: -6.09 | V107: -1.4 | W107: -4.676666667 | X107: 0.65 | Y107: 0.67 | Z107: -0.03
A108: ORL | B108: 28 | C108: Orlando Magic | D108: E | E108: SE | F108: 17 | G108: 27 | H108: 0.386 | I108: -5.23 | J108: 103.95 | K108: 109.44 | L108: -5.49 | M108: -5.69 | N108: 103.94 | O108: 109.89 | P108: -5.95 | Q108: ORL | R108: -5.95 | S108: -4.96 | T108: -0.9866666667 | U108: -5.49 | V108: -4.95 | W108: -0.5366666667 | X108: -0.46 | Y108: -0.01 | Z108: -0.45
A109: PHI | B109: 29 | C109: Philadelphia 76ers | D109: E | E109: A | F109: 14 | G109: 26 | H109: 0.35 | I109: -5.6 | J109: 102.01 | K109: 107.86 | L109: -5.86 | M109: -5.99 | N109: 101.73 | O109: 107.96 | P109: -6.22 | Q109: PHI | R109: -6.22 | S109: -7.17 | T109: 0.9433333333 | U109: -5.86 | V109: -6.89 | W109: 1.043333333 | X109: -0.36 | Y109: -0.28 | Z109: -0.1
A110: BRK | B110: 30 | C110: Brooklyn Nets | D110: E | E110: A | F110: 8 | G110: 33 | H110: 0.195 | I110: -9.63 | J110: 103.27 | K110: 112.81 | L110: -9.54 | M110: -8.83 | N110: 103.07 | O110: 111.78 | P110: -8.7 | Q110: BRK | R110: -8.7 | S110: -5.83 | T110: -2.876666667 | U110: -9.54 | V110: -5.63 | W110: -3.906666667 | X110: 0.84 | Y110: -0.2 | Z110: 1.03
B115: Rk | C115: Team | D115: Age | E115: PW | F115: PL | G115: MOV | H115: SOS | I115: SRS | J115: ORtg | K115: DRtg | L115: Pace | M115: FTr | N115: 3PAr | O115: TS% | P115: eFG% | Q115: TOV% | R115: ORB% | S115: FT/FGA | T115: eFG% | U115: TOV% | V115: DRB% | W115: FT/FGA | X115: Arena | Y115: Attendance
B116: 1 | C116: Golden State Warriors | D116: 28.3 | E116: 35 | F116: 7 | G116: 12.81 | H116: -0.51 | I116: 12.3 | J116: 116.1 | K116: 103.5 | L116: 100.7 | M116: 0.271 | N116: 0.351 | O116: 0.603 | P116: 0.568 | Q116: 13.5 | R116: 22.3 | S116: 0.214 | T116: 0.483 | U116: 13.1 | V116: 75.9 | W116: 0.201 | X116: Oracle Arena | Y116: 450708
B117: 2 | C117: San Antonio Spurs | D117: 29.8 | E117: 32 | F117: 10 | G117: 8.83 | H117: -0.26 | I117: 8.58 | J117: 113.9 | K117: 104.5 | L117: 94 | M117: 0.277 | N117: 0.272 | O117: 0.581 | P117: 0.538 | Q117: 12.3 | R117: 23.1 | S117: 0.226 | T117: 0.495 | U117: 13.4 | V117: 77.8 | W117: 0.202 | X117: AT&amp;T Center | Y117: 386985
B118: 3 | C118: Houston Rockets | D118: 27.4 | E118: 32 | F118: 13 | G118: 7.22 | H118: -0.28 | I118: 6.94 | J118: 115.2 | K118: 107.9 | L118: 98.7 | M118: 0.281 | N118: 0.461 | O118: 0.586 | P118: 0.552 | Q118: 13.6 | R118: 25.3 | S118: 0.213 | T118: 0.513 | U118: 13.3 | V118: 76.2 | W118: 0.199 | X118: Toyota Center | Y118: 347553
B119: 4 | C119: Toronto Raptors | D119: 26.1 | E119: 29 | F119: 13 | G119: 6.57 | H119: -0.14 | I119: 6.44 | J119: 115.5 | K119: 108.7 | L119: 95.6 | M119: 0.302 | N119: 0.284 | O119: 0.572 | P119: 0.525 | Q119: 11 | R119: 25.5 | S119: 0.245 | T119: 0.514 | U119: 14.4 | V119: 74.5 | W119: 0.219 | X119: Air Canada Centre | Y119: 417050
B120: 5 | C120: Los Angeles Clippers | D120: 30.1 | E120: 30 | F120: 14 | G120: 5.95 | H120: -0.78 | I120: 5.17 | J120: 111.7 | K120: 105.6 | L120: 96.3 | M120: 0.305 | N120: 0.324 | O120: 0.568 | P120: 0.53 | Q120: 12.2 | R120: 22.3 | S120: 0.23 | T120: 0.492 | U120: 12.6 | V120: 76.8 | W120: 0.217 | X120: STAPLES Center | Y120: 457619
B121: 6 | C121: Cleveland Cavaliers | D121: 29 | E121: 27 | F121: 14 | G121: 5.1 | H121: -0.17 | I121: 4.93 | J121: 112.6 | K121: 107.4 | L121: 96.7 | M121: 0.295 | N121: 0.39 | O121: 0.567 | P121: 0.528 | Q121: 12.6 | R121: 23.7 | S121: 0.225 | T121: 0.51 | U121: 12.8 | V121: 75.2 | W121: 0.172 | X121: Quicken Loans Arena | Y121: 452364
B122: 7 | C122: Utah Jazz | D122: 26.5 | E122: 28 | F122: 15 | G122: 4.26 | H122: -0.24 | I122: 4.01 | J122: 108.8 | K122: 104.1 | L122: 91.2 | M122: 0.294 | N122: 0.337 | O122: 0.565 | P122: 0.528 | Q122: 13.5 | R122: 22 | S122: 0.22 | T122: 0.48 | U122: 11.6 | V122: 77.4 | W122: 0.188 | X122: Vivint Smart Home Arena | Y122: 430794
B123: 8 | C123: Boston Celtics | D123: 26 | E123: 24 | F123: 18 | G123: 2.14 | H123: -0.12 | I123: 2.02 | J123: 111.5 | K123: 109.2 | L123: 95.7 | M123: 0.248 | N123: 0.378 | O123: 0.561 | P123: 0.521 | Q123: 11.5 | R123: 21.4 | S123: 0.201 | T123: 0.505 | U123: 12.9 | V123: 73.5 | W123: 0.219 | X123: TD Garden | Y123: 370022
B124: 9 | C124: Oklahoma City Thunder | D124: 24.5 | E124: 23 | F124: 21 | G124: 0.75 | H124: 0.25 | I124: 1 | J124: 107.9 | K124: 107.2 | L124: 97.6 | M124: 0.296 | N124: 0.302 | O124: 0.545 | P124: 0.506 | Q124: 13.4 | R124: 26.4 | S124: 0.22 | T124: 0.507 | U124: 12.7 | V124: 77.4 | W124: 0.208 | X124: Chesapeake Energy Arena | Y124: 382263
B125: 10 | C125: Memphis Grizzlies | D125: 28.9 | E125: 23 | F125: 21 | G125: 0.41 | H125: 0.55 | I125: 0.96 | J125: 105.2 | K125: 104.8 | L125: 92.9 | M125: 0.279 | N125: 0.307 | O125: 0.524 | P125: 0.48 | Q125: 12.1 | R125: 24.1 | S125: 0.218 | T125: 0.496 | U125: 14.1 | V125: 78.4 | W125: 0.27 | X125: FedEx Forum | Y125: 357446
B126: 11 | C126: Charlotte Hornets | D126: 26.7 | E126: 23 | F126: 19 | G126: 1.45 | H126: -0.52 | I126: 0.94 | J126: 108 | K126: 106.5 | L126: 96.5 | M126: 0.295 | N126: 0.313 | O126: 0.542 | P126: 0.496 | Q126: 11 | R126: 21 | S126: 0.233 | T126: 0.506 | U126: 11.6 | V126: 79.1 | W126: 0.163 | X126: Spectrum Center | Y126: 342330
B127: 12 | C127: Milwaukee Bucks | D127: 25.6 | E127: 22 | F127: 19 | G127: 1.05 | H127: -0.28 | I127: 0.77 | J127: 109.5 | K127: 108.4 | L127: 95.2 | M127: 0.265 | N127: 0.278 | O127: 0.561 | P127: 0.526 | Q127: 12.9 | R127: 22.9 | S127: 0.202 | T127: 0.508 | U127: 13.1 | V127: 75.4 | W127: 0.208 | X127: BMO Harris Bradley Center | Y127: 340989
B128: 13 | C128: Washington Wizards | D128: 26 | E128: 21 | F128: 21 | G128: 0.33 | H128: -0.59 | I128: -0.26 | J128: 109 | K128: 108.7 | L128: 96.5 | M128: 0.24 | N128: 0.27 | O128: 0.556 | P128: 0.521 | Q128: 13.2 | R128: 24.2 | S128: 0.189 | T128: 0.523 | U128: 14.2 | V128: 75.7 | W128: 0.212 | X128: Verizon Center | Y128: 373211
B129: 14 | C129: Detroit Pistons | D129: 25.5 | E129: 21 | F129: 23 | G129: -0.7 | H129: 0.28 | I129: -0.43 | J129: 105.9 | K129: 106.6 | L129: 94.2 | M129: 0.218 | N129: 0.264 | O129: 0.527 | P129: 0.496 | Q129: 11.2 | R129: 22.5 | S129: 0.161 | T129: 0.511 | U129: 12.3 | V129: 80.5 | W129: 0.204 | X129: The Palace of Auburn Hills | Y129: 305735
B130: 15 | C130: Chicago Bulls | D130: 27.6 | E130: 22 | F130: 22 | G130: 0 | H130: -0.63 | I130: -0.63 | J130: 107.1 | K130: 107.1 | L130: 94.4 | M130: 0.28 | N130: 0.233 | O130: 0.519 | P130: 0.471 | Q130: 12.1 | R130: 29.5 | S130: 0.224 | T130: 0.507 | U130: 12.2 | V130: 76.4 | W130: 0.165 | X130: United Center | Y130: 475255
B131: 16 | C131: Minnesota Timberwolves | D131: 23.7 | E131: 20 | F131: 23 | G131: -1.14 | H131: 0.47 | I131: -0.67 | J131: 108.9 | K131: 110.1 | L131: 94.2 | M131: 0.285 | N131: 0.27 | O131: 0.549 | P131: 0.505 | Q131: 13.7 | R131: 27.6 | S131: 0.225 | T131: 0.526 | U131: 13.2 | V131: 77.2 | W131: 0.22 | X131: Target Center | Y131: 307075
B132: 17 | C132: Atlanta Hawks | D132: 28.2 | E132: 21 | F132: 21 | G132: -0.19 | H132: -0.56 | I132: -0.75 | J132: 105.3 | K132: 105.5 | L132: 97.1 | M132: 0.276 | N132: 0.305 | O132: 0.541 | P132: 0.507 | Q132: 14 | R132: 24.1 | S132: 0.199 | T132: 0.508 | U132: 14 | V132: 75.7 | W132: 0.172 | X132: Philips Arena | Y132: 308945
B133: 18 | C133: Denver Nuggets | D133: 25.2 | E133: 18 | F133: 23 | G133: -2.07 | H133: 0.25 | I133: -1.82 | J133: 110.6 | K133: 112.7 | L133: 98.3 | M133: 0.289 | N133: 0.31 | O133: 0.554 | P133: 0.515 | Q133: 13.6 | R133: 28.1 | S133: 0.218 | T133: 0.527 | U133: 10.7 | V133: 78.8 | W133: 0.213 | X133: Pepsi Center | Y133: 273079
B134: 19 | C134: Indiana Pacers | D134: 27.1 | E134: 19 | F134: 22 | G134: -0.83 | H134: -1.27 | I134: -2.1 | J134: 107.3 | K134: 108.1 | L134: 97.6 | M134: 0.266 | N134: 0.265 | O134: 0.555 | P134: 0.511 | Q134: 12.9 | R134: 20 | S134: 0.218 | T134: 0.509 | U134: 13.7 | V134: 74.6 | W134: 0.211 | X134: Bankers Life Fieldhouse | Y134: 348189
B135: 20 | C135: New Orleans Pelicans | D135: 25.6 | E135: 18 | F135: 25 | G135: -2.28 | H135: 0.16 | I135: -2.12 | J135: 103.3 | K135: 105.6 | L135: 97.9 | M135: 0.256 | N135: 0.301 | O135: 0.529 | P135: 0.493 | Q135: 11.6 | R135: 17.9 | S135: 0.192 | T135: 0.499 | U135: 12.1 | V135: 77.5 | W135: 0.169 | X135: Smoothie King Center | Y135: 349794
B136: 21 | C136: Portland Trail Blazers | D136: 25.1 | E136: 18 | F136: 26 | G136: -3.16 | H136: 0.81 | I136: -2.35 | J136: 109.1 | K136: 112.3 | L136: 97.3 | M136: 0.271 | N136: 0.333 | O136: 0.555 | P136: 0.515 | Q136: 12.5 | R136: 21.9 | S136: 0.212 | T136: 0.514 | U136: 11.7 | V136: 76 | W136: 0.252 | X136: Moda Center | Y136: 382532
B137: 22 | C137: Sacramento Kings | D137: 29 | E137: 17 | F137: 24 | G137: -2.83 | H137: 0.35 | I137: -2.48 | J137: 107.7 | K137: 110.7 | L137: 94.6 | M137: 0.3 | N137: 0.3 | O137: 0.552 | P137: 0.507 | Q137: 13.4 | R137: 22.4 | S137: 0.235 | T137: 0.53 | U137: 13.9 | V137: 75.8 | W137: 0.234 | X137: Golden 1 Center | Y137: 369768
B138: 23 | C138: New York Knicks | D138: 27.6 | E138: 18 | F138: 26 | G138: -2.8 | H138: -0.07 | I138: -2.87 | J138: 108.2 | K138: 111 | L138: 96.9 | M138: 0.236 | N138: 0.283 | O138: 0.536 | P138: 0.499 | Q138: 12.7 | R138: 27.2 | S138: 0.185 | T138: 0.507 | U138: 11.7 | V138: 74.6 | W138: 0.226 | X138: Madison Square Garden (IV) | Y138: 435864
B139: 24 | C139: Miami Heat | D139: 26.3 | E139: 16 | F139: 27 | G139: -4.05 | H139: 0.53 | I139: -3.52 | J139: 103.1 | K139: 107.4 | L139: 94.9 | M139: 0.249 | N139: 0.298 | O139: 0.518 | P139: 0.491 | Q139: 12.2 | R139: 23.3 | S139: 0.169 | T139: 0.498 | U139: 12.1 | V139: 76.6 | W139: 0.206 | X139: AmericanAirlines Arena | Y139: 392833
B140: 25 | C140: Dallas Mavericks | D140: 27.9 | E140: 14 | F140: 28 | G140: -4.69 | H140: 0.96 | I140: -3.73 | J140: 104.3 | K140: 109.4 | L140: 91.3 | M140: 0.213 | N140: 0.37 | O140: 0.535 | P140: 0.5 | Q140: 12 | R140: 18.7 | S140: 0.169 | T140: 0.536 | U140: 14.8 | V140: 77.8 | W140: 0.229 | X140: American Airlines Center | Y140: 372808
B141: 26 | C141: Phoenix Suns | D141: 25.8 | E141: 13 | F141: 29 | G141: -5.98 | H141: 1.06 | I141: -4.92 | J141: 105.2 | K141: 111.1 | L141: 99.4 | M141: 0.286 | N141: 0.266 | O141: 0.536 | P141: 0.492 | Q141: 13.9 | R141: 26.5 | S141: 0.221 | T141: 0.528 | U141: 13.8 | V141: 77.3 | W141: 0.254 | X141: Talking Stick Resort Arena | Y141: 346837
B142: 27 | C142: Los Angeles Lakers | D142: 25.9 | E142: 15 | F142: 31 | G142: -5.85 | H142: 0.63 | I142: -5.22 | J142: 106.8 | K142: 112.8 | L142: 98 | M142: 0.276 | N142: 0.299 | O142: 0.538 | P142: 0.498 | Q142: 13.4 | R142: 25.5 | S142: 0.21 | T142: 0.539 | U142: 12.6 | V142: 75.5 | W142: 0.205 | X142: STAPLES Center | Y142: 434543
B143: 28 | C143: Orlando Magic | D143: 25.6 | E143: 14 | F143: 30 | G143: -5.23 | H143: -0.46 | I143: -5.69 | J143: 103.4 | K143: 108.9 | L143: 95.9 | M143: 0.232 | N143: 0.305 | O143: 0.523 | P143: 0.493 | Q143: 12.1 | R143: 21.7 | S143: 0.167 | T143: 0.514 | U143: 12 | V143: 77 | W143: 0.191 | X143: Amway Center | Y143: 356909
B144: 29 | C144: Philadelphia 76ers | D144: 25 | E144: 13 | F144: 27 | G144: -5.6 | H144: -0.39 | I144: -5.99 | J144: 101.4 | K144: 107.1 | L144: 97 | M144: 0.251 | N144: 0.356 | O144: 0.532 | P144: 0.496 | Q144: 15.4 | R144: 22.2 | S144: 0.19 | T144: 0.503 | U144: 12.9 | V144: 75.8 | W144: 0.217 | X144: Wells Fargo Center | Y144: 387897
B145: 30 | C145: Brooklyn Nets | D145: 26.4 | E145: 9 | F145: 32 | G145: -9.63 | H145: 0.8 | I145: -8.83 | J145: 102.8 | K145: 112.2 | L145: 101.9 | M145: 0.278 | N145: 0.384 | O145: 0.546 | P145: 0.504 | Q145: 15 | R145: 19.8 | S145: 0.217 | T145: 0.522 | U145: 11.6 | V145: 75.5 | W145: 0.205 | X145: Barclays Center | Y145: 339039
B149: Rk | C149: Team | D149: G | E149: MP | F149: FG | G149: FGA | H149: FG% | I149: 3P | J149: 3PA | K149: 3P% | L149: 2P | M149: 2PA | N149: 2P% | O149: FT | P149: FTA | Q149: FT% | R149: ORB | S149: DRB | T149: TRB | U149: AST | V149: STL | W149: BLK | X149: TOV | Y149: PF | Z149: PTS
B150: 1 | C150: Houston Rockets | D150: 45 | E150: 10875 | F150: 1827 | G150: 3913 | H150: 0.467 | I150: 667 | J150: 1802 | K150: 0.37 | L150: 1160 | M150: 2111 | N150: 0.55 | O150: 832 | P150: 1098 | Q150: 0.758 | R150: 493 | S150: 1505 | T150: 1998 | U150: 1150 | V150: 366 | W150: 211 | X150: 693 | Y150: 884 | Z150: 5153
B151: 2 | C151: Golden State Warriors | D151: 42 | E151: 10155 | F151: 1834 | G151: 3666 | H151: 0.5 | I151: 495 | J151: 1286 | K151: 0.385 | L151: 1339 | M151: 2380 | N151: 0.563 | O151: 784 | P151: 993 | Q151: 0.79 | R151: 382 | S151: 1522 | T151: 1904 | U151: 1319 | V151: 397 | W151: 264 | X151: 640 | Y151: 815 | Z151: 4947
B152: 3 | C152: Los Angeles Lakers | D152: 46 | E152: 11040 | F152: 1778 | G152: 3990 | H152: 0.446 | I152: 422 | J152: 1193 | K152: 0.354 | L152: 1356 | M152: 2797 | N152: 0.485 | O152: 837 | P152: 1100 | Q152: 0.761 | R152: 535 | S152: 1479 | T152: 2014 | U152: 957 | V152: 357 | W152: 164 | X152: 691 | Y152: 944 | Z152: 4815
B153: 4 | C153: Los Angeles Clippers | D153: 44 | E153: 10610 | F153: 1731 | G153: 3690 | H153: 0.469 | I153: 446 | J153: 1194 | K153: 0.374 | L153: 1285 | M153: 2496 | N153: 0.515 | O153: 847 | P153: 1127 | Q153: 0.752 | R153: 415 | S153: 1517 | T153: 1932 | U153: 992 | V153: 346 | W153: 211 | X153: 582 | Y153: 901 | Z153: 4755
B154: 5 | C154: Portland Trail Blazers | D154: 44 | E154: 10685 | F154: 1733 | G154: 3802 | H154: 0.456 | I154: 453 | J154: 1266 | K154: 0.358 | L154: 1280 | M154: 2536 | N154: 0.505 | O154: 807 | P154: 1032 | Q154: 0.782 | R154: 427 | S154: 1449 | T154: 1876 | U154: 980 | V154: 307 | W154: 230 | X154: 607 | Y154: 955 | Z154: 4726
B155: 6 | C155: Oklahoma City Thunder | D155: 44 | E155: 10660 | F155: 1736 | G155: 3797 | H155: 0.457 | I155: 372 | J155: 1146 | K155: 0.325 | L155: 1364 | M155: 2651 | N155: 0.515 | O155: 834 | P155: 1124 | Q155: 0.742 | R155: 496 | S155: 1498 | T155: 1994 | U155: 947 | V155: 342 | W155: 226 | X155: 664 | Y155: 903 | Z155: 4678
B156: 7 | C156: Toronto Raptors | D156: 42 | E156: 10130 | F156: 1693 | G156: 3599 | H156: 0.47 | I156: 395 | J156: 1022 | K156: 0.386 | L156: 1298 | M156: 2577 | N156: 0.504 | O156: 880 | P156: 1086 | Q156: 0.81 | R156: 466 | S156: 1335 | T156: 1801 | U156: 806 | V156: 383 | W156: 205 | X156: 503 | Y156: 878 | Z156: 4661
B157: 8 | C157: New York Knicks | D157: 44 | E157: 10635 | F157: 1759 | G157: 3926 | H157: 0.448 | I157: 401 | J157: 1113 | K157: 0.36 | L157: 1358 | M157: 2813 | N157: 0.483 | O157: 725 | P157: 927 | Q157: 0.782 | R157: 542 | S157: 1474 | T157: 2016 | U157: 956 | V157: 311 | W157: 254 | X157: 630 | Y157: 912 | Z157: 4644
B158: 9 | C158: San Antonio Spurs | D158: 42 | E158: 10105 | F158: 1667 | G158: 3460 | H158: 0.482 | I158: 391 | J158: 942 | K158: 0.415 | L158: 1276 | M158: 2518 | N158: 0.507 | O158: 783 | P158: 957 | Q158: 0.818 | R158: 390 | S158: 1406 | T158: 1796 | U158: 1020 | V158: 337 | W158: 238 | X158: 546 | Y158: 770 | Z158: 4508
B159: 10 | C159: Denver Nuggets | D159: 41 | E159: 9915 | F159: 1652 | G159: 3598 | H159: 0.459 | I159: 403 | J159: 1116 | K159: 0.361 | L159: 1249 | M159: 2482 | N159: 0.503 | O159: 785 | P159: 1040 | Q159: 0.755 | R159: 503 | S159: 1414 | T159: 1917 | U159: 982 | V159: 276 | W159: 171 | X159: 637 | Y159: 840 | Z159: 4492
B160: 11 | C160: Boston Celtics | D160: 42 | E160: 10105 | F160: 1631 | G160: 3610 | H160: 0.452 | I160: 503 | J160: 1366 | K160: 0.368 | L160: 1128 | M160: 2244 | N160: 0.503 | O160: 726 | P160: 894 | Q160: 0.812 | R160: 391 | S160: 1332 | T160: 1723 | U160: 1049 | V160: 315 | W160: 193 | X160: 519 | Y160: 842 | Z160: 4491
B161: 12 | C161: Cleveland Cavaliers | D161: 41 | E161: 9865 | F161: 1583 | G161: 3496 | H161: 0.453 | I161: 524 | J161: 1365 | K161: 0.384 | L161: 1059 | M161: 2131 | N161: 0.497 | O161: 786 | P161: 1033 | Q161: 0.761 | R161: 417 | S161: 1380 | T161: 1797 | U161: 882 | V161: 305 | W161: 164 | X161: 567 | Y161: 744 | Z161: 4476
B162: 13 | C162: Washington Wizards | D162: 42 | E162: 10155 | F162: 1706 | G162: 3617 | H162: 0.472 | I162: 357 | J162: 975 | K162: 0.366 | L162: 1349 | M162: 2642 | N162: 0.511 | O162: 682 | P162: 869 | Q162: 0.785 | R162: 429 | S162: 1350 | T162: 1779 | U162: 977 | V162: 360 | W162: 166 | X162: 607 | Y162: 894 | Z162: 4451
B163: 14 | C163: Phoenix Suns | D163: 42 | E163: 10205 | F163: 1647 | G163: 3686 | H163: 0.447 | I163: 336 | J163: 981 | K163: 0.343 | L163: 1311 | M163: 2705 | N163: 0.485 | O163: 815 | P163: 1053 | Q163: 0.774 | R163: 505 | S163: 1386 | T163: 1891 | U163: 770 | V163: 358 | W163: 184 | X163: 672 | Y163: 1049 | Z163: 4445
B164: 15 | C164: Minnesota Timberwolves | D164: 43 | E164: 10370 | F164: 1645 | G164: 3592 | H164: 0.458 | I164: 338 | J164: 969 | K164: 0.349 | L164: 1307 | M164: 2623 | N164: 0.498 | O164: 807 | P164: 1024 | Q164: 0.788 | R164: 502 | S164: 1346 | T164: 1848 | U164: 979 | V164: 321 | W164: 197 | X164: 640 | Y164: 888 | Z164: 4435
B165: 16 | C165: Charlotte Hornets | D165: 42 | E165: 10155 | F165: 1587 | G165: 3604 | H165: 0.44 | I165: 399 | J165: 1128 | K165: 0.354 | L165: 1188 | M165: 2476 | N165: 0.48 | O165: 838 | P165: 1062 | Q165: 0.789 | R165: 393 | S165: 1514 | T165: 1907 | U165: 981 | V165: 279 | W165: 215 | X165: 505 | Y165: 709 | Z165: 4411
B166: 17 | C166: New Orleans Pelicans | D166: 43 | E166: 10470 | F166: 1645 | G166: 3744 | H166: 0.439 | I166: 400 | J166: 1127 | K166: 0.355 | L166: 1245 | M166: 2617 | N166: 0.476 | O166: 720 | P166: 957 | Q166: 0.752 | R166: 364 | S166: 1544 | T166: 1908 | U166: 981 | V166: 326 | W166: 252 | X166: 547 | Y166: 781 | Z166: 4410
B167: 18 | C167: Detroit Pistons | D167: 44 | E167: 10610 | F167: 1724 | G167: 3820 | H167: 0.451 | I167: 345 | J167: 1007 | K167: 0.343 | L167: 1379 | M167: 2813 | N167: 0.49 | O167: 616 | P167: 834 | Q167: 0.739 | R167: 439 | S167: 1497 | T167: 1936 | U167: 928 | V167: 313 | W167: 170 | X167: 527 | Y167: 801 | Z167: 4409
B168: 19 | C168: Orlando Magic | D168: 44 | E168: 10610 | F168: 1679 | G168: 3808 | H168: 0.441 | I168: 393 | J168: 1163 | K168: 0.338 | L168: 1286 | M168: 2645 | N168: 0.486 | O168: 635 | P168: 882 | Q168: 0.72 | R168: 430 | S168: 1454 | T168: 1884 | U168: 976 | V168: 293 | W168: 231 | X168: 580 | Y168: 809 | Z168: 4386
B169: 20 | C169: Memphis Grizzlies | D169: 44 | E169: 10760 | F169: 1587 | G169: 3721 | H169: 0.426 | I169: 396 | J169: 1141 | K169: 0.347 | L169: 1191 | M169: 2580 | N169: 0.462 | O169: 812 | P169: 1040 | Q169: 0.781 | R169: 474 | S169: 1439 | T169: 1913 | U169: 913 | V169: 381 | W169: 201 | X169: 574 | Y169: 1056 | Z169: 4382
B170: 21 | C170: Chicago Bulls | D170: 43 | E170: 10345 | F170: 1623 | G170: 3737 | H170: 0.434 | I170: 276 | J170: 871 | K170: 0.317 | L170: 1347 | M170: 2866 | N170: 0.47 | O170: 838 | P170: 1046 | Q170: 0.801 | R170: 583 | S170: 1463 | T170: 2046 | U170: 902 | V170: 329 | W170: 217 | X170: 578 | Y170: 757 | Z170: 4360
B171: 22 | C171: Indiana Pacers | D171: 41 | E171: 9940 | F171: 1618 | G171: 3501 | H171: 0.462 | I171: 339 | J171: 928 | K171: 0.365 | L171: 1279 | M171: 2573 | N171: 0.497 | O171: 762 | P171: 930 | Q171: 0.819 | R171: 353 | S171: 1378 | T171: 1731 | U171: 928 | V171: 348 | W171: 225 | X171: 578 | Y171: 793 | Z171: 4337
B172: 23 | C172: Brooklyn Nets | D172: 41 | E172: 9890 | F172: 1549 | G172: 3523 | H172: 0.44 | I172: 455 | J172: 1353 | K172: 0.336 | L172: 1094 | M172: 2170 | N172: 0.504 | O172: 766 | P172: 979 | Q172: 0.782 | R172: 370 | S172: 1431 | T172: 1801 | U172: 869 | V172: 304 | W172: 188 | X172: 700 | Y172: 862 | Z172: 4319
B173: 24 | C173: Atlanta Hawks | D173: 42 | E173: 10130 | F173: 1618 | G173: 3559 | H173: 0.455 | I173: 373 | J173: 1087 | K173: 0.343 | L173: 1245 | M173: 2472 | N173: 0.504 | O173: 708 | P173: 981 | Q173: 0.722 | R173: 441 | S173: 1394 | T173: 1835 | U173: 1009 | V173: 358 | W173: 213 | X173: 647 | Y173: 746 | Z173: 4317
B174: 25 | C174: Milwaukee Bucks | D174: 41 | E174: 9890 | F174: 1627 | G174: 3429 | H174: 0.474 | I174: 350 | J174: 953 | K174: 0.367 | L174: 1277 | M174: 2476 | N174: 0.516 | O174: 694 | P174: 910 | Q174: 0.763 | R174: 389 | S174: 1354 | T174: 1743 | U174: 1020 | V174: 333 | W174: 228 | X174: 569 | Y174: 813 | Z174: 4298
B175: 26 | C175: Utah Jazz | D175: 43 | E175: 10320 | F175: 1556 | G175: 3342 | H175: 0.466 | I175: 417 | J175: 1127 | K175: 0.37 | L175: 1139 | M175: 2215 | N175: 0.514 | O175: 736 | P175: 983 | Q175: 0.749 | R175: 374 | S175: 1463 | T175: 1837 | U175: 834 | V175: 275 | W175: 217 | X175: 590 | Y175: 819 | Z175: 4265
B176: 27 | C176: Miami Heat | D176: 43 | E176: 10395 | F176: 1622 | G176: 3686 | H176: 0.44 | I176: 372 | J176: 1097 | K176: 0.339 | L176: 1250 | M176: 2589 | N176: 0.483 | O176: 622 | P176: 919 | Q176: 0.677 | R176: 456 | S176: 1444 | T176: 1900 | U176: 907 | V176: 291 | W176: 236 | X176: 569 | Y176: 881 | Z176: 4238
B177: 28 | C177: Sacramento Kings | D177: 41 | E177: 9915 | F177: 1527 | G177: 3372 | H177: 0.453 | I177: 365 | J177: 1013 | K177: 0.36 | L177: 1162 | M177: 2359 | N177: 0.493 | O177: 791 | P177: 1011 | Q177: 0.782 | R177: 385 | S177: 1285 | T177: 1670 | U177: 901 | V177: 331 | W177: 167 | X177: 592 | Y177: 842 | Z177: 4210
B178: 29 | C178: Dallas Mavericks | D178: 42 | E178: 10130 | F178: 1494 | G178: 3438 | H178: 0.435 | I178: 451 | J178: 1272 | K178: 0.355 | L178: 1043 | M178: 2166 | N178: 0.482 | O178: 581 | P178: 732 | Q178: 0.794 | R178: 343 | S178: 1246 | T178: 1589 | U178: 840 | V178: 321 | W178: 161 | X178: 514 | Y178: 809 | Z178: 4020
B179: 30 | C179: Philadelphia 76ers | D179: 40 | E179: 9700 | F179: 1458 | G179: 3364 | H179: 0.433 | I179: 419 | J179: 1198 | K179: 0.35 | L179: 1039 | M179: 2166 | N179: 0.48 | O179: 638 | P179: 845 | Q179: 0.755 | R179: 390 | S179: 1351 | T179: 1741 | U179: 906 | V179: 313 | W179: 230 | X179: 679 | Y179: 870 | Z179: 3973
Q180: =AVERAGE(Q150:Q179) -> 0.7698333333
